bitfinex/quotes_ETHUSD_20251031
["timestamp","ask_amount","ask_price","bid_price","bid_amount"]
[1761894245356,11.04733375,3834.7,3834.6,0.002]
[1761894245661,17.82151075,3834.7,3834.6,0.002]
[1761894245821,12.86905875,3834.7,3834.6,0.002]
[1761894246348,2.72287343,3834.0,3833.9,1e-08]
[1761894246532,13.49755556,3834.0,3833.9,1e-08]
[1761894246735,16.68895254,3834.0,3833.9,1e-08]
[1761894247074,14.38978425,3834.0,3833.9,1e-08]
[1761894247350,14.28521278,3834.0,3833.9,1e-08]
[1761894247653,16.39373897,3834.0,3833.9,1e-08]
[1761894247866,45.20292097,3834.0,3833.9,1e-08]
[1761894248031,47.0710913,3834.0,3833.9,1e-08]
[1761894248225,42.43011397,3834.0,3833.9,1e-08]
[1761894248420,43.48060286,3834.0,3833.9,1e-08]
[1761894249034,35.44739686,3834.0,3833.9,1e-08]
[1761894249238,46.39373897,3834.0,3833.9,1e-08]
[1761894250256,40.21463997,3834.0,3833.9,1e-08]
[1761894251234,46.39373897,3834.0,3833.9,1e-08]
[1761894251740,43.40955297,3834.0,3833.9,1e-08]
[1761894252136,52.88373897,3834.0,3833.9,1e-08]
[1761894254041,44.84791697,3834.0,3833.9,1e-08]
[1761894254242,20.36179837,3834.0,3833.9,1e-08]
[1761894254445,10.47841274,3834.0,3833.9,1e-08]
[1761894254643,18.4263361,3834.0,3833.9,1e-08]
[1761894254862,20.3020161,3834.0,3833.9,1e-08]
[1761894255646,20.67834137,3834.0,3833.9,1e-08]
[1761894256150,9.98681274,3834.0,3833.9,1e-08]
[1761894256715,10.85473801,3834.0,3833.9,1e-08]
[1761894256852,10.36313801,3834.0,3833.9,1e-08]
[1761894257981,10.85473801,3834.0,3833.9,1e-08]
[1761894259286,9.98681274,3834.0,3833.9,0.30060001]
[1761894260476,2.78796655,3834.0,3833.9,0.30060001]
[1761894260675,2.82056957,3834.0,3833.9,0.60120001]
[1761894261194,2.82056957,3834.0,3833.9,0.30060001]
[1761894261371,2.26387645,3834.0,3833.9,0.30060001]
[1761894261570,2.82056957,3834.0,3833.9,0.60120001]
[1761894261768,2.26387645,3834.0,3833.9,0.60120001]
[1761894261991,2.82056957,3834.0,3833.9,0.60120001]
[1761894262191,1.85837245,3834.0,3833.9,0.60120001]
[1761894262691,0.03260302,3834.0,3833.9,0.60120001]
[1761894262901,0.03260217,3834.1,3833.9,0.60120001]
[1761894263055,0.03260217,3834.1,3834.0,0.3006]
[1761894263395,1.85832398,3834.1,3834.0,0.6012]
[1761894263593,1.85832398,3834.1,3834.0,0.3006]
[1761894264190,2.4150171,3834.1,3834.0,0.3006]
[1761894264388,2.8104754,3834.1,3834.0,0.3006]
[1761894264601,3.36716852,3834.1,3834.0,0.3006]
[1761894268611,0.58929529,3834.1,3834.0,0.3006]
[1761894268779,0.03260217,3834.1,3834.0,0.6012]
[1761894268981,0.58929529,3834.1,3834.0,0.6012]
[1761894270335,0.03260217,3834.1,3834.0,0.6012]
[1761894270982,0.03260047,3834.3,3834.0,0.6012]
[1761894271184,0.1304,3834.0,3833.9,1e-08]
[1761894271679,0.1304,3834.0,3833.9,0.60120001]
[1761894272177,0.1304,3834.0,3833.9,4.39216296]
[1761894273785,0.1304,3834.0,3833.9,2.42701706]
[1761894274114,0.03259622,3834.8,3834.0,1.82574048]
[1761894274316,1.80858224,3836.0,3834.0,1.82574048]
[1761894274317,0.1304,3834.2,3834.1,1.82572095]
[1761894274518,0.1304,3834.2,3834.1,2.12632095]
[1761894274724,0.1304,3834.2,3834.1,0.6012]
[1761894276496,1.98867551,3834.2,3834.1,0.3006]
[1761894278244,2.37010108,3834.2,3834.1,0.3006]
[1761894279612,1.82576943,3834.0,3833.9,1e-08]
[1761894279809,2.33907245,3834.0,3833.9,1e-08]
[1761894280024,3.19089772,3834.0,3833.9,1e-08]
[1761894280353,4.28260723,3834.0,3833.9,1e-08]
[1761894280954,3.43078196,3834.0,3833.9,1e-08]
[1761894281422,2.33907245,3834.0,3833.9,1e-08]
[1761894284060,1.85837245,3834.0,3833.9,0.30060001]
[1761894287777,1.85837245,3834.0,3833.9,1e-08]
[1761894288142,2.41897574,3834.0,3833.9,1e-08]
[1761894288341,1.85837245,3834.0,3833.9,1e-08]
[1761894288542,2.92913329,3834.0,3833.9,1e-08]
[1761894288769,2.36853,3834.0,3833.9,1e-08]
[1761894288943,2.92913329,3834.0,3833.9,1e-08]
[1761894289142,2.36853,3834.0,3833.9,1e-08]
[1761894289357,2.92913329,3834.0,3833.9,1e-08]
[1761894289767,2.36853,3834.0,3833.9,1e-08]
[1761894289938,3.78015856,3834.0,3833.9,1e-08]
[1761894290137,4.26045856,3834.0,3833.9,1e-08]
[1761894294678,3.78015856,3834.0,3833.9,1e-08]
[1761894298582,1.8259123,3833.7,3833.6,0.002]
[1761894298786,10.73093698,3833.7,3833.6,0.002]
[1761894299080,12.93405436,3833.7,3833.6,0.002]
[1761894299247,11.53563703,3833.7,3833.6,0.002]
[1761894300462,11.17863141,3833.7,3833.6,0.002]
[1761894300682,12.11412978,3833.7,3833.6,0.002]
[1761894301655,12.11426008,3833.7,3833.6,0.002]
[1761894302154,12.11518314,3833.7,3833.6,0.002]
[1761894302973,11.17955447,3833.7,3833.6,0.002]
[1761894303151,12.11544927,3833.7,3833.6,0.002]
[1761894303349,11.55392292,3833.7,3833.6,0.002]
[1761894303555,2.23165447,3833.2,3833.1,0.01]
[1761894303783,9.6435249,3833.2,3833.1,0.01]
[1761894305059,3.26780197,3833.2,3833.1,0.01]
[1761894305391,2.82571179,3833.2,3833.1,0.01]
[1761894305962,2.42020779,3833.2,3833.1,0.4606]
[1761894306300,1.85876029,3833.2,3833.1,0.4606]
[1761894306464,2.42020779,3833.2,3833.1,0.4606]
[1761894306665,1.85876029,3833.2,3833.1,0.4606]
[1761894306885,2.42020779,3833.2,3833.1,0.4606]
[1761894307062,1.85876029,3833.2,3833.1,0.4626]
[1761894307264,2.42020779,3833.2,3833.1,0.4626]
[1761894307567,1.85876029,3833.2,3833.1,0.4626]
[1761894308702,1.85876029,3833.2,3833.1,0.7632]
[1761894309102,1.85876029,3833.2,3833.1,0.4626]
[1761894309400,3.31953486,3833.2,3833.1,0.012]
[1761894309601,3.79983486,3833.2,3833.1,0.012]
[1761894309812,3.76722504,3833.2,3833.1,0.012]
[1761894310505,3.79983486,3833.2,3833.1,0.012]
[1761894310893,3.76722504,3833.2,3833.1,0.012]
[1761894311197,3.72503886,3833.2,3833.1,0.012]
[1761894311371,4.20533886,3833.2,3833.1,0.012]
[1761894311571,3.72503886,3833.2,3833.1,0.012]
[1761894311907,3.25033886,3833.2,3833.1,0.3126]
[1761894312599,2.42020779,3833.2,3833.1,0.4626]
[1761894312765,1.85876029,3833.2,3833.1,0.7632]
[1761894312966,2.42020779,3833.2,3833.1,0.3126]
[1761894313189,1.85876029,3833.2,3833.1,0.4626]
[1761894313396,2.42020779,3833.2,3833.1,0.4626]
[1761894313611,1.85876029,3833.2,3833.1,0.4626]
[1761894313768,2.42020779,3833.2,3833.1,0.4626]
[1761894313968,1.85876029,3833.2,3833.1,0.4626]
[1761894314173,2.42020779,3833.2,3833.1,0.4626]
[1761894314384,1.85876029,3833.2,3833.1,0.4626]
[1761894314702,2.42020779,3833.2,3833.1,0.4626]
[1761894314871,1.85876029,3833.2,3833.1,0.4626]
[1761894315071,2.42020779,3833.2,3833.1,0.4626]
[1761894315270,1.85876029,3833.2,3833.1,0.4626]
[1761894315471,2.42020779,3833.2,3833.1,0.4626]
[1761894315782,1.85876029,3833.2,3833.1,0.4626]
[1761894315980,4.10136413,3833.2,3833.1,0.012]
[1761894316184,4.58166413,3833.2,3833.1,0.012]
[1761894317015,5.51733866,3833.2,3833.1,0.012]
[1761894317324,4.54905431,3833.2,3833.1,0.012]
[1761894317531,4.10136413,3833.2,3833.1,0.012]
[1761894317892,2.84483486,3833.2,3833.1,0.3126]
[1761894318209,2.42020779,3833.2,3833.1,0.3126]
[1761894318810,3.33180779,3833.2,3833.1,0.012]
[1761894320019,2.87510779,3833.2,3833.1,0.012]
[1761894320323,3.89713463,3833.2,3833.1,0.012]
[1761894320548,4.38653463,3833.2,3833.1,0.012]
[1761894320927,3.44223463,3833.2,3833.1,0.012]
[1761894322231,3.91063463,3833.2,3833.1,0.012]
[1761894322420,4.40003463,3833.2,3833.1,0.012]
[1761894323327,4.80553863,3833.2,3833.1,0.012]
[1761894324100,4.6924639,3833.2,3833.1,0.012]
[1761894325434,4.2240639,3833.2,3833.1,0.012]
[1761894325934,3.84773863,3833.2,3833.1,0.012]
[1761894326521,3.44223463,3833.2,3833.1,0.4626]
[1761894326901,3.44223463,3833.2,3833.1,0.3126]
[1761894327101,3.44223463,3833.2,3833.1,0.012]
[1761894327303,3.44223463,3833.2,3833.1,0.3126]
[1761894329936,3.44223463,3833.2,3833.1,0.4626]
[1761894329937,2.42020779,3833.2,3833.1,0.4626]
[1761894330230,2.42020779,3833.2,3833.1,0.7632]
[1761894330536,2.42020779,3833.2,3833.1,0.4626]
[1761894331034,2.42020779,3833.2,3833.1,0.7632]
[1761894332049,0.5614475,3833.2,3833.1,0.7632]
[1761894333258,0.59405732,3833.2,3833.1,0.7632]
[1761894334460,0.03260982,3833.2,3833.1,0.7632]
[1761894334822,0.1314,3833.3,3833.1,0.7632]
[1761894335028,0.1314,3833.3,3833.2,0.3006]
[1761894335459,0.1314,3833.3,3833.2,0.6012]
[1761894335632,0.001,3833.3,3833.2,0.75424]
[1761894335956,0.001,3833.3,3833.2,1.35544]
[1761894337260,0.001,3833.3,3833.2,1.05484]
[1761894337554,0.001,3833.3,3833.2,0.9018]
[1761894337727,0.001,3833.3,3833.2,1.2024]
[1761894338359,0.001,3833.3,3833.2,0.9018]
[1761894338861,0.001,3833.3,3833.2,1.2024]
[1761894341567,0.001,3833.3,3833.2,0.9018]
[1761894341745,0.001,3833.3,3833.2,1.2024]
[1761894341957,0.001,3833.3,3833.2,0.9018]
[1761894342676,1.8597118,3833.3,3833.2,0.9018]
[1761894342878,2.14347401,3833.3,3833.2,0.6012]
[1761894343277,1.82615047,3833.2,3833.1,0.012]
[1761894343847,2.85595571,3833.2,3833.1,0.012]
[1761894344673,3.34535571,3833.2,3833.1,0.012]
[1761894345082,3.37796553,3833.2,3833.1,0.012]
[1761894345278,4.38011063,3833.2,3833.1,0.012]
[1761894345473,3.89071063,3833.2,3833.1,0.012]
[1761894346282,3.42231063,3833.2,3833.1,0.012]
[1761894346576,1.59616016,3833.2,3833.1,0.3126]
[1761894346757,0.59401506,3833.2,3833.1,0.3126]
[1761894347162,2.42016553,3833.2,3833.1,0.3126]
[1761894347677,2.42016553,3833.2,3833.1,0.4626]
[1761894348289,2.88856553,3833.2,3833.1,0.012]
[1761894348498,3.37796553,3833.2,3833.1,0.012]
[1761894348706,4.38010687,3833.2,3833.1,0.012]
[1761894349064,3.42230687,3833.2,3833.1,0.012]
[1761894349264,3.42230687,3833.2,3833.1,0.3126]
[1761894349498,3.42230687,3833.2,3833.1,0.012]
[1761894350616,3.88560687,3833.2,3833.1,0.012]
[1761894351776,3.42230687,3833.2,3833.1,0.012]
[1761894352294,1.5961564,3833.2,3833.1,0.3126]
[1761894352488,2.42016553,3833.2,3833.1,0.4626]
[1761894355407,1.85876029,3833.2,3833.1,0.4626]
[1761894355706,2.42045103,3833.2,3833.1,0.4626]
[1761894358410,0.59430056,3833.2,3833.1,0.4626]
[1761894359209,2.42045103,3833.2,3833.1,0.4626]
[1761894360393,0.59430056,3833.2,3833.1,0.4626]
[1761894360719,2.42045103,3833.2,3833.1,0.4626]
[1761894361713,0.59430056,3833.2,3833.1,0.4626]
[1761894362203,0.1314,3833.3,3833.1,0.7632]
[1761894362389,0.1314,3833.3,3833.2,0.3006]
[1761894362594,0.69340902,3833.3,3833.2,0.3006]
[1761894363097,0.1314,3833.3,3833.2,0.9252]
[1761894363298,0.16400897,3833.3,3833.2,0.9252]
[1761894363523,0.1314,3833.3,3833.2,1.2258]
[1761894365299,0.1314,3833.3,3833.2,0.9252]
[1761894365792,0.16400897,3833.3,3833.2,0.9252]
[1761894366686,1.18930032,3833.3,3833.2,0.6246]
[1761894367113,3.47650315,3833.3,3833.2,0.6246]
[1761894367429,1.82615047,3833.2,3833.1,0.012]
[1761894367596,3.71804582,3833.2,3833.1,0.012]
[1761894367796,4.09437109,3833.2,3833.1,0.012]
[1761894368688,5.06265544,3833.2,3833.1,0.012]
[1761894370943,4.12698091,3833.2,3833.1,0.012]
[1761894371126,6.44302257,3833.2,3833.1,0.012]
[1761894371323,6.41041275,3833.2,3833.1,0.012]
[1761894372038,6.41041275,3833.2,3833.0,0.002]
[1761894372039,2.23170211,3833.1,3833.0,0.002]
[1761894372341,5.88371503,3833.1,3833.0,0.002]
[1761894372500,8.22977508,3833.1,3833.0,0.002]
[1761894372705,21.40118975,3833.1,3833.0,0.002]
[1761894372933,16.11904175,3833.1,3833.0,0.002]
[1761894373170,13.20842248,3833.1,3833.0,0.002]
[1761894373336,11.11846748,3833.1,3833.0,0.002]
[1761894373637,15.65864348,3833.1,3833.0,0.002]
[1761894373841,8.23435348,3833.1,3833.0,0.002]
[1761894374023,6.83135775,3833.1,3833.0,0.002]
[1761894374203,6.47435213,3833.1,3833.0,0.002]
[1761894377217,7.40886459,3833.1,3833.0,0.002]
[1761894378027,6.47435213,3833.1,3833.0,0.002]
[1761894380514,1.54224475,3833.1,3833.0,0.3026]
[1761894380712,1.85880879,3833.1,3833.0,0.3026]
[1761894380916,2.82630414,3833.1,3833.0,0.002]
[1761894381156,2.26431279,3833.1,3833.0,0.002]
[1761894381456,2.82630414,3833.1,3833.0,0.002]
[1761894381817,2.75521279,3833.1,3833.0,0.002]
[1761894382021,9.32768746,3833.1,3833.0,0.002]
[1761894382355,9.29507678,3833.1,3833.0,0.002]
[1761894383721,4.79506535,3833.1,3833.0,0.002]
[1761894384052,4.82767603,3833.1,3833.0,0.002]
[1761894385326,4.33127603,3833.1,3833.0,0.002]
[1761894385559,4.82767603,3833.1,3833.0,0.002]
[1761894386740,4.79506535,3833.1,3833.0,0.002]
[1761894387642,4.82767603,3833.1,3833.0,0.002]
[1761894393401,4.82967603,3833.1,3833.0,0.002]
[1761894395350,10.35556475,3833.1,3833.0,0.002]
[1761894395554,10.32295407,3833.1,3833.0,0.002]
[1761894395749,11.25746653,3833.1,3833.0,0.002]
[1761894396182,10.32295407,3833.1,3833.0,0.002]
[1761894396571,9.82655407,3833.1,3833.0,0.002]
[1761894396763,10.32295407,3833.1,3833.0,0.002]
[1761894399691,11.7259498,3833.1,3833.0,0.002]
[1761894400664,13.45852173,3833.1,3833.0,0.002]
[1761894402493,6.03323728,3833.1,3833.0,0.002]
[1761894402676,3.80976535,3833.1,3833.0,0.3026]
[1761894402876,4.77967352,3833.1,3833.0,0.002]
[1761894403803,11.0454623,3833.1,3833.0,0.002]
[1761894403984,11.01285162,3833.1,3833.0,0.002]
[1761894405265,13.81624449,3833.1,3833.0,0.002]
[1761894405506,13.81624449,3833.1,3832.9,0.002]
[1761894405507,5.61701876,3833.0,3832.9,0.002]
[1761894405665,10.75482592,3833.0,3832.9,0.002]
[1761894405872,8.25490892,3833.0,3832.9,0.002]
[1761894406079,7.99353792,3833.0,3832.9,0.002]
[1761894406281,5.94835592,3833.0,3832.9,0.002]
[1761894406478,1.82668367,3832.1,3831.1,0.01]
[1761894406800,0.59532853,3832.0,3831.7,0.10458924]
[1761894406969,0.56270849,3831.9,3831.7,0.10458924]
[1761894407175,0.03262174,3831.8,3831.1,0.01]
[1761894407400,0.405504,3832.0,3831.1,0.01]
[1761894407608,0.59522727,3831.9,3831.2,0.7845178]
[1761894407816,1.82690788,3831.7,3831.1,0.01]
[1761894408112,0.03262344,3831.6,3831.1,0.7945178]
[1761894408269,1.82691655,3831.6,3831.1,0.7945178]
[1761894408471,0.03262429,3831.5,3831.1,0.7945178]
[1761894408669,0.03262429,3831.5,3831.1,1.01393758]
[1761894408894,0.03262429,3831.5,3831.1,0.22941978]
[1761894409096,0.405504,3831.9,3831.1,0.01]
[1761894409295,1.82700244,3831.5,3831.1,0.01]
[1761894409497,2.42211884,3831.4,3831.1,0.01]
[1761894409698,1.85964148,3831.4,3831.1,0.01]
[1761894410099,1.82706173,3831.3,3831.1,0.01]
[1761894410280,0.03262685,3831.2,3831.1,0.01]
[1761894412086,2.42191486,3831.4,3831.1,0.01]
[1761894412285,1.85965093,3831.4,3831.1,0.01]
[1761894412516,1.82705746,3831.3,3831.1,0.01]
[1761894412715,0.03262685,3831.2,3831.1,0.01]
[1761894412874,0.59489078,3831.2,3831.1,0.01]
[1761894413075,0.03262685,3831.2,3831.1,0.01]
[1761894413608,2.42167267,3831.2,3831.1,0.01]
[1761894413806,1.85973062,3831.2,3831.1,0.01]
[1761894414108,2.32933062,3831.2,3831.1,0.01]
[1761894414402,2.89127267,3831.2,3831.1,0.01]
[1761894414777,2.32933062,3831.2,3831.1,0.01]
[1761894414976,2.89127267,3831.2,3831.1,0.01]
[1761894415208,2.32933062,3831.2,3831.1,0.01]
[1761894415379,4.21545339,3831.2,3831.1,0.01]
[1761894415707,4.77739544,3831.2,3831.1,0.01]
[1761894417709,3.85159544,3831.2,3831.1,0.01]
[1761894417904,2.82717667,3831.2,3831.1,0.01]
[1761894418309,2.73483462,3831.2,3831.1,0.01]
[1761894418617,3.29677667,3831.2,3831.1,0.01]
[1761894418917,2.82717667,3831.2,3831.1,0.01]
[1761894419410,3.29677667,3831.2,3831.1,0.01]
[1761894419604,3.85477697,3831.2,3831.1,0.01]
[1761894420302,3.38517697,3831.2,3831.1,0.01]
[1761894421093,0.03262685,3831.2,3831.1,0.01]
[1761894421612,0.03262515,3831.4,3831.1,0.01]
[1761894422428,0.03262344,3831.6,3831.1,0.01]
[1761894422743,0.1304,3831.4,3831.2,0.78453216]
[1761894423808,0.032626,3831.3,3831.2,0.78453216]
[1761894424141,0.1304,3831.4,3831.2,1.04680783]
[1761894424438,0.1304,3831.4,3831.3,0.01979828]
[1761894424735,0.1304,3831.4,3831.2,2.61163104]
[1761894425057,0.1304,3831.4,3831.3,1.84685437]
[1761894425238,0.56062314,3832.1,3831.5,1.82692807]
[1761894425407,0.1304,3831.8,3831.6,0.0197908]
[1761894425919,0.1304,3831.8,3831.5,0.01979198]
[1761894426114,0.1304,3831.8,3831.5,1.8467502]
[1761894426339,0.1304,3831.8,3831.5,2.43255609]
[1761894426554,0.03261748,3832.3,3831.5,0.58580589]
[1761894426701,0.03261833,3832.2,3831.5,0.58580589]
[1761894426905,2.41971186,3832.6,3831.3,1.39968]
[1761894427141,0.56062314,3832.5,3831.5,1.82695454]
[1761894427346,0.03261663,3832.4,3831.7,1.82682069]
[1761894427511,0.03261663,3832.4,3831.5,1.82695454]
[1761894427710,0.03261663,3832.4,3831.5,1.82694812]
[1761894427909,0.59323807,3832.6,3831.7,1.82686536]
[1761894428140,0.002,3831.8,3831.7,1.82686536]
[1761894428536,0.002,3831.8,3831.6,0.32266281]
[1761894428716,0.002,3831.8,3831.6,2.14957542]
[1761894429726,0.002,3831.8,3831.7,1.93144776]
[1761894429938,0.002,3831.8,3831.7,2.17665028]
[1761894430557,0.002,3831.8,3831.7,2.15685882]
[1761894432029,0.002,3831.8,3831.7,2.17664968]
[1761894432913,0.002,3831.8,3831.7,2.15685882]
[1761894433108,0.002,3831.8,3831.7,2.17664968]
[1761894433843,0.002,3831.8,3831.7,2.15685882]
[1761894434022,0.002,3831.8,3831.7,2.17664968]
[1761894434816,0.002,3831.8,3831.7,2.15685882]
[1761894436660,0.002,3831.8,3831.7,3.68693882]
[1761894436857,0.002,3831.8,3831.7,2.28725882]
[1761894437293,0.002,3831.8,3831.7,0.2349824]
[1761894437647,0.002,3831.8,3831.7,0.1045824]
[1761894438265,0.4539,3831.8,3831.7,0.1045824]
[1761894438675,0.002,3831.8,3831.7,0.1045824]
[1761894441180,0.002,3831.8,3831.7,0.12437326]
[1761894443185,0.002,3831.8,3831.7,0.1045824]
[1761894445067,0.002,3831.8,3831.7,0.12437386]
[1761894445256,0.002,3831.8,3831.7,0.1045824]
[1761894446682,0.002,3831.8,3831.7,1.93144776]
[1761894446989,0.002,3831.8,3831.7,3.01486815]
[1761894447659,0.002,3831.8,3831.7,4.41454815]
[1761894447858,0.002,3831.8,3831.7,4.54494815]
[1761894448080,0.002,3831.8,3831.7,2.71808279]
[1761894448388,0.002,3831.8,3831.7,4.54494815]
[1761894448586,0.002,3831.8,3831.7,3.46152776]
[1761894449076,0.002,3831.8,3831.7,3.48131862]
[1761894455460,0.002,3831.8,3831.7,7.9824609]
[1761894455692,0.002,3831.8,3831.7,7.96267004]
[1761894465375,0.9345,3831.8,3831.7,1.6346624]
[1761894465566,0.4589,3831.8,3831.7,1.6346624]
[1761894465769,0.9345,3831.8,3831.7,1.6346624]
[1761894466389,0.9345,3831.8,3831.7,3.46152776]
[1761894466786,0.002,3831.8,3831.7,3.46152776]
[1761894467194,0.002,3831.8,3831.7,3.48131862]
[1761894474708,0.4523,3831.8,3831.7,3.48131862]
[1761894474909,0.002,3831.8,3831.7,3.48131862]
[1761894476916,0.002,3831.8,3831.7,4.46225963]
[1761894478920,0.002,3831.8,3831.7,8.96340191]
[1761894479110,0.002,3831.8,3831.7,7.96267004]
[1761894487022,0.002,3832.2,3832.1,1.82667466]
[1761894487189,0.002,3832.2,3832.1,6.347601]
[1761894487393,0.002,3832.2,3832.1,7.85789694]
[1761894487619,0.002,3832.2,3832.1,8.04689694]
[1761894487993,0.002,3832.2,3832.1,9.03426091]
[1761894491717,0.002,3832.2,3832.1,13.53540319]
[1761894494417,0.002,3832.2,3832.1,9.03426091]
[1761894497311,0.002,3832.2,3832.1,4.53311863]
[1761894497640,0.002,3832.2,3832.1,8.84526091]
[1761894498522,0.939,3832.2,3832.1,3.35675466]
[1761894499312,0.939,3832.2,3832.1,0.1304]
[1761894499930,0.939,3832.2,3832.1,1.95707466]
[1761894500132,0.939,3832.2,3832.1,1.97685872]
[1761894500324,0.002,3832.2,3832.1,1.97685872]
[1761894501044,0.002,3832.2,3832.1,1.84645872]
[1761894501240,0.002,3832.2,3832.1,4.33394121]
[1761894501446,0.4982,3832.2,3832.1,4.31415715]
[1761894501656,0.9487,3832.2,3832.1,1.53008]
[1761894501818,0.9487,3832.2,3832.1,3.35675466]
[1761894502545,0.9487,3832.2,3832.1,1.53008]
[1761894504244,0.9487,3832.2,3832.1,3.35675466]
[1761894505335,0.9487,3832.2,3832.1,1.53008]
[1761894506226,0.9487,3832.2,3832.1,3.35675466]
[1761894509261,0.9487,3832.2,3832.1,7.85789694]
[1761894509746,0.9487,3832.2,3832.1,1.53008]
[1761894509939,0.9487,3832.2,3832.1,3.35675466]
[1761894513084,0.9487,3832.2,3832.1,1.53008]
[1761894515166,0.9487,3832.2,3832.1,3.35675466]
[1761894517361,0.4982,3832.2,3832.1,3.35675466]
[1761894517560,0.002,3832.2,3832.1,3.35675466]
[1761894517767,0.4982,3832.2,3832.1,3.35675466]
[1761894518060,0.002,3832.2,3832.1,3.35675466]
[1761894518262,0.002,3832.2,3832.1,3.37653872]
[1761894518672,0.002,3832.2,3832.1,4.21886495]
[1761894518881,0.002,3832.2,3832.1,4.08846495]
[1761894520680,0.002,3832.2,3832.1,4.06868089]
[1761894521596,0.9487,3832.2,3832.1,4.06868089]
[1761894522158,0.9487,3832.2,3832.1,3.37653872]
[1761894523289,0.9487,3832.2,3832.1,3.35675466]
[1761894525896,0.9487,3832.2,3832.1,1.53008]
[1761894527575,0.9487,3832.2,3832.1,1.39968]
[1761894528806,1.0791,3832.2,3832.1,1.39968]
[1761894536025,1.0793,3832.2,3832.1,3.22635466]
[1761894536314,1.0793,3832.2,3832.1,1.39968]
[1761894541410,1.0793,3832.2,3832.1,3.22635466]
[1761894541587,0.1324,3832.2,3832.1,3.22635466]
[1761894542433,0.002,3832.2,3832.1,3.22635466]
[1761894542610,0.002,3832.2,3832.1,4.35121033]
[1761894542926,0.002,3832.2,3832.1,3.42623872]
[1761894550913,0.002,3832.2,3832.1,3.55663872]
[1761894552720,0.002,3832.2,3832.1,3.53685466]
[1761894555351,0.9195,3832.2,3832.1,3.53685466]
[1761894558382,0.9195,3832.2,3832.1,1.71018]
[1761894558548,0.9195,3832.2,3832.1,1.57978]
[1761894559287,0.9195,3832.2,3832.1,3.40645466]
[1761894559882,0.4688,3832.2,3832.1,3.40645466]
[1761894560083,0.9517,3832.2,3832.1,3.40645466]
[1761894561378,0.4688,3832.2,3832.1,3.40645466]
[1761894561975,0.9517,3832.2,3832.1,3.40645466]
[1761894563589,0.002,3832.2,3832.1,3.40645466]
[1761894563953,0.002,3832.2,3832.1,3.42623872]
[1761894565359,0.002,3832.2,3832.1,4.51709022]
[1761894565565,0.002,3832.2,3832.1,4.64749022]
[1761894572889,0.002,3832.2,3832.1,4.51709022]
[1761894573203,0.002,3832.6,3832.5,1.82648401]
[1761894573523,0.002,3832.6,3832.5,7.37037377]
[1761894573816,0.002,3832.6,3832.5,8.5406571]
[1761894574192,0.002,3832.6,3832.5,8.64518976]
[1761894575822,0.002,3832.6,3832.5,10.04486976]
[1761894577312,0.002,3832.6,3832.5,14.33380945]
[1761894578530,0.002,3833.0,3832.9,1.8262934]
[1761894578735,0.001,3833.3,3833.0,3.22592576]
[1761894579234,0.001,3833.3,3833.0,3.33043575]
[1761894580023,0.001,3833.3,3833.0,3.35020449]
[1761894581315,0.002,3833.5,3833.4,1.82605519]
[1761894581515,0.002,3833.5,3833.4,6.73258129]
[1761894581714,0.002,3833.5,3833.4,9.07588742]
[1761894582029,0.002,3833.5,3833.4,9.18038731]
[1761894584527,0.002,3833.5,3833.4,14.08691341]
[1761894584727,0.002,3833.5,3833.4,9.18038731]
[1761894593638,0.4846,3833.5,3833.4,9.18038731]
[1761894593838,0.9476,3833.5,3833.4,9.18038731]
[1761894594570,0.4846,3833.5,3833.4,9.18038731]
[1761894595374,0.9476,3833.5,3833.4,9.18038731]
[1761894595675,0.9476,3833.5,3833.4,8.36716118]
[1761894602698,0.4846,3833.5,3833.4,8.36716118]
[1761894603023,0.9476,3833.5,3833.4,8.36716118]
[1761894603790,0.002,3833.5,3833.4,8.23676118]
[1761894603991,0.002,3833.5,3833.4,8.36716118]
[1761894604195,0.002,3833.5,3833.4,9.77159234]
[1761894606428,0.002,3833.9,3833.4,9.77159234]
[1761894606429,0.002,3833.9,3833.8,1.82586467]
[1761894606605,0.002,3833.9,3833.8,8.1518259]
[1761894606792,0.002,3833.9,3833.8,8.26247077]
[1761894606997,0.002,3833.9,3833.8,8.3669652]
[1761894607205,0.002,3833.9,3833.8,9.38625771]
[1761894607423,0.002,3833.9,3833.8,14.29278381]
[1761894608137,1e-08,3834.0,3833.9,3.22549705]
[1761894608434,1e-08,3834.0,3833.9,3.24525048]
[1761894608640,0.001,3834.1,3834.0,1.82576943]
[1761894608809,0.001,3834.1,3834.0,4.87982574]
[1761894609131,0.001,3834.4,3834.2,1.82567419]
[1761894609333,0.001,3834.4,3834.2,8.15162862]
[1761894609636,1e-08,3834.4,3834.3,3.63081058]
[1761894610011,0.001,3834.8,3834.7,6.3062061]
[1761894610209,0.001,3834.8,3834.7,8.76226285]
[1761894610414,0.001,3834.8,3834.7,8.89186285]
[1761894610651,0.001,3834.8,3834.7,9.35486285]
[1761894613255,0.1842,3835.6,3835.5,1.8250554]
[1761894613402,0.6668,3835.6,3835.5,1.8250554]
[1761894613623,0.1823,3836.0,3835.6,3.22468782]
[1761894613952,0.6453,3836.0,3835.6,8.13121392]
[1761894615465,0.9566,3835.7,3835.6,8.13121392]
[1761894616123,0.4936,3835.7,3835.6,8.13121392]
[1761894616326,0.011,3835.7,3835.6,8.13121392]
[1761894616627,0.011,3835.7,3835.6,9.45650643]
[1761894619193,0.5032,3835.7,3835.6,5.04138033]
[1761894619363,0.9936,3835.7,3835.6,9.94790643]
[1761894619768,0.011,3835.7,3835.6,9.94790643]
[1761894620895,0.9628,3835.7,3835.6,9.94790643]
[1761894621330,0.9628,3835.7,3835.6,5.04138033]
[1761894621488,0.9628,3835.7,3835.6,9.94790643]
[1761894622294,0.011,3835.7,3835.6,9.94790643]
[1761894623825,0.011,3835.7,3835.6,13.79790643]